bitfinex/quotes_BTCUSD_20250529
["timestamp","ask_amount","ask_price","bid_price","bid_amount"]
[1748476802668,0.002,107760.0,107750.0,18.26274214]
[1748476804567,0.08080307,107780.0,107760.0,0.031]
[1748476804773,0.17185702,107780.0,107750.0,18.26304214]
[1748476805529,0.17185702,107780.0,107750.0,18.26004214]
[1748476805749,0.19487732,107760.0,107750.0,18.25954214]
[1748476805961,0.19487732,107760.0,107750.0,18.28700214]
[1748476806182,0.19487732,107760.0,107750.0,18.45489694]
[1748476806619,0.19485933,107770.0,107760.0,0.0622]
[1748476806851,0.0185576,107770.0,107760.0,0.1677948]
[1748476807060,0.0185576,107770.0,107760.0,0.1697948]
[1748476807279,0.204138,107770.0,107760.0,0.1697948]
[1748476807488,0.204138,107770.0,107760.0,0.1677948]
[1748476807931,0.204138,107770.0,107760.0,0.1701143]
[1748476808137,0.19485933,107770.0,107760.0,0.1677948]
[1748476808354,0.19585933,107770.0,107760.0,0.1407948]
[1748476808569,0.19585933,107770.0,107760.0,0.003]
[1748476808570,0.54899933,107770.0,107760.0,0.003]
[1748476809893,0.54899933,107770.0,107760.0,0.006]
[1748476810345,0.51749933,107770.0,107760.0,0.006]
[1748476810623,0.55019933,107770.0,107760.0,0.006]
[1748476811311,0.64125328,107770.0,107760.0,0.006]
[1748476811735,0.62125328,107770.0,107760.0,0.006]
[1748476811942,0.64162504,107770.0,107760.0,0.006]
[1748476812586,0.63053221,107770.0,107760.0,0.006]
[1748476813657,0.6393981,107770.0,107760.0,0.006]
[1748476813855,0.65049093,107770.0,107760.0,0.006]
[1748476815312,0.79795476,107770.0,107760.0,0.006]
[1748476815525,0.8016763,107770.0,107760.0,0.006]
[1748476815777,0.25937732,107760.0,107750.0,18.19384214]
[1748476815980,0.40168645,107760.0,107750.0,18.19384214]
[1748476816396,0.40168645,107760.0,107750.0,18.18465603]
[1748476816642,0.37037086,107760.0,107750.0,18.18465603]
[1748476817563,0.37037086,107760.0,107750.0,18.18965603]
[1748476818207,0.40168197,107760.0,107750.0,18.18965603]
[1748476818416,0.44245635,107760.0,107750.0,18.18965603]
[1748476819038,0.4313788,107760.0,107750.0,18.18965603]
[1748476819463,0.44244728,107760.0,107750.0,18.18965603]
[1748476820077,0.43170985,107760.0,107750.0,18.18965603]
[1748476820286,0.40574984,107760.0,107750.0,18.18965603]
[1748476820507,0.77033547,107760.0,107750.0,18.18965603]
[1748476821597,0.73904149,107760.0,107750.0,18.18965603]
[1748476821818,0.77032091,107760.0,107750.0,18.18965603]
[1748476822459,0.73904149,107760.0,107750.0,18.18965603]
[1748476823532,0.73017945,107760.0,107750.0,18.18965603]
[1748476824194,0.44093945,107760.0,107750.0,18.18965603]
[1748476824400,0.42987097,107760.0,107750.0,18.18965603]
[1748476824629,0.71911097,107760.0,107750.0,18.18965603]
[1748476825495,0.73017054,107760.0,107750.0,18.18965603]
[1748476827221,0.71017054,107760.0,107750.0,18.18965603]
[1748476828533,0.71016622,107760.0,107750.0,18.18965603]
[1748476832588,0.69911097,107760.0,107750.0,18.18965603]
[1748476832793,0.71017618,107760.0,107750.0,18.18965603]
[1748476834023,0.33077618,107760.0,107750.0,18.18965603]
[1748476834259,0.69017618,107760.0,107750.0,18.18965603]
[1748476834454,0.67911097,107760.0,107750.0,18.18965603]
[1748476835373,0.38987097,107760.0,107750.0,18.18965603]
[1748476835584,0.69017618,107760.0,107750.0,18.18965603]
[1748476836584,0.69902835,107760.0,107750.0,18.18965603]
[1748476836935,0.69903595,107760.0,107750.0,18.18965603]
[1748476838595,0.71385032,107760.0,107750.0,18.18965603]
[1748476839615,0.70278089,107760.0,107750.0,18.18965603]
[1748476839815,0.70279694,107760.0,107750.0,18.18965603]
[1748476841118,0.70280043,107760.0,107750.0,18.18047245]
[1748476841355,0.68280043,107760.0,107750.0,18.18047245]
[1748476841569,0.78447792,107760.0,107750.0,18.15872155]
[1748476841779,0.7530358,107760.0,107750.0,18.15872155]
[1748476842653,0.7530358,107760.0,107750.0,18.15672155]
[1748476842863,0.7530358,107760.0,107750.0,18.15372155]
[1748476843073,0.7540358,107760.0,107750.0,18.15372155]
[1748476843267,0.7540358,107760.0,107750.0,18.15472155]
[1748476844198,0.8596306,107760.0,107750.0,18.15472155]
[1748476844412,5.9096306,107760.0,107750.0,18.12131436]
[1748476844613,5.93925935,107760.0,107750.0,18.12131436]
[1748476845035,5.93925935,107760.0,107750.0,18.09334367]
[1748476845036,6.23921667,107760.0,107750.0,18.09334367]
[1748476846103,6.48808272,107760.0,107750.0,18.09334367]
[1748476846319,6.45745397,107760.0,107750.0,18.09334367]
[1748476846528,6.45745397,107760.0,107750.0,18.09234367]
[1748476846742,6.46045397,107760.0,107750.0,18.09334367]
[1748476847376,6.49008272,107760.0,107750.0,18.09334367]
[1748476847593,6.55150792,107760.0,107750.0,18.09334367]
[1748476848009,6.55450792,107760.0,107750.0,18.09434367]
[1748476848424,6.58413667,107760.0,107750.0,18.09434367]
[1748476848627,6.55450792,107760.0,107750.0,18.09434367]
[1748476849043,6.55449794,107760.0,107750.0,18.09434367]
[1748476849685,6.46344399,107760.0,107750.0,18.09434367]
[1748476850500,6.46266812,107760.0,107750.0,18.09434367]
[1748476851517,6.49229687,107760.0,107750.0,18.09434367]
[1748476851996,6.49233687,107760.0,107750.0,18.09434367]
[1748476852208,6.86358812,107760.0,107750.0,18.09434367]
[1748476853245,6.48422373,107760.0,107750.0,18.09434367]
[1748476853457,1.81354373,107760.0,107750.0,18.09434367]
[1748476854522,1.81358373,107760.0,107750.0,18.09434367]
[1748476855836,1.8136394,107760.0,107750.0,18.09434367]
[1748476856057,1.11973907,107760.0,107750.0,18.09434367]
[1748476856271,0.73137447,107760.0,107750.0,18.12704367]
[1748476856514,0.63017539,107760.0,107750.0,18.16024367]
[1748476856742,0.12938115,107760.0,107750.0,18.16024367]
[1748476857186,0.41858115,107760.0,107750.0,18.26583847]
[1748476857388,0.12638115,107760.0,107750.0,18.26483847]
[1748476857600,0.41658115,107760.0,107750.0,18.26483847]
[1748476858012,0.41558115,107760.0,107750.0,18.26483847]
[1748476858219,0.13566077,107760.0,107750.0,18.26583847]
[1748476858399,0.39658115,107760.0,107750.0,18.27083847]
[1748476858630,0.39358115,107760.0,107750.0,18.26983847]
[1748476858835,0.39558115,107760.0,107750.0,18.26983847]
[1748476859042,0.48707732,107760.0,107750.0,18.26983847]
[1748476859497,0.13437732,107760.0,107750.0,18.26333847]
[1748476859706,0.42357732,107760.0,107750.0,18.26333847]
[1748476860335,0.13437732,107760.0,107750.0,18.26333847]
[1748476860549,0.42357732,107760.0,107750.0,18.35341847]
[1748476860757,0.42357732,107760.0,107750.0,18.26333847]
[1748476860967,0.42357732,107760.0,107750.0,18.35341847]
[1748476861650,0.42357732,107760.0,107750.0,18.15774367]
[1748476862496,0.42357732,107760.0,107750.0,18.10234367]
[1748476864272,0.42357732,107760.0,107750.0,18.13264367]
[1748476864523,0.42349732,107760.0,107750.0,18.15544367]
[1748476865565,0.40349732,107760.0,107750.0,18.15544367]
[1748476866414,0.40353732,107760.0,107750.0,18.15544367]
[1748476866630,0.11437732,107760.0,107750.0,18.15544367]
[1748476866861,0.40353732,107760.0,107750.0,18.15544367]
[1748476870900,0.11437732,107760.0,107750.0,18.15544367]
[1748476871122,0.11437732,107760.0,107750.0,18.24649762]
[1748476871333,0.40357732,107760.0,107750.0,18.24649762]
[1748476872676,0.40381732,107760.0,107750.0,18.26103847]
[1748476873309,0.11437732,107760.0,107750.0,18.26103847]
[1748476873523,0.40369732,107760.0,107750.0,18.26103847]
[1748476873734,0.38369732,107760.0,107750.0,18.26103847]
[1748476873943,0.38369732,107760.0,107750.0,18.35127847]
[1748476874412,0.09437732,107760.0,107750.0,18.35127847]
[1748476874653,0.001,107760.0,107750.0,18.36127847]
[1748476874876,0.001,107760.0,107750.0,18.91473448]
[1748476875100,0.00927858,107770.0,107760.0,0.62319796]
[1748476875101,0.018557,107770.0,107760.0,0.62319796]
[1748476875319,0.01855674,107770.0,107760.0,0.70497212]
[1748476875535,0.0278355,107770.0,107760.0,0.69569242]
[1748476875749,0.0278355,107770.0,107760.0,0.5100948]
[1748476875750,0.21341668,107770.0,107760.0,0.5100948]
[1748476875971,0.20413818,107770.0,107760.0,0.2602948]
[1748476876193,0.20413818,107770.0,107760.0,0.1957948]
[1748476876377,0.19487732,107760.0,107750.0,18.15124367]
[1748476876631,0.48479732,107760.0,107750.0,18.27959762]
[1748476876869,0.48479732,107760.0,107750.0,18.27459762]
[1748476877098,0.48479732,107760.0,107750.0,18.18354367]
[1748476877953,0.48579732,107760.0,107750.0,18.18754367]
[1748476878175,0.55579732,107760.0,107750.0,18.19154367]
[1748476878387,0.26587732,107760.0,107750.0,18.19154367]
[1748476878606,0.55603732,107760.0,107750.0,18.31409762]
[1748476879023,0.55639732,107760.0,107750.0,18.31409762]
[1748476879664,0.26587732,107760.0,107750.0,18.31409762]
[1748476879869,0.55635732,107760.0,107750.0,18.31409762]
[1748476880292,0.55635732,107760.0,107750.0,18.36143847]
[1748476880293,0.56563711,107760.0,107750.0,18.36143847]
[1748476880741,0.54563711,107760.0,107750.0,18.36143847]
[1748476880949,0.55491681,107760.0,107750.0,18.36143847]
[1748476881175,0.55479681,107760.0,107750.0,18.36143847]
[1748476882083,0.55479681,107760.0,107750.0,18.32863847]
[1748476883366,0.55479681,107760.0,107750.0,18.29713847]
[1748476883814,0.55479681,107760.0,107750.0,18.19154367]
[1748476884246,0.55479681,107760.0,107750.0,18.19054367]
[1748476885117,0.95649681,107760.0,107750.0,18.10034367]
[1748476885355,1.04755076,107760.0,107750.0,18.10034367]
[1748476885832,1.16055457,107760.0,107750.0,18.07859321]
[1748476886043,1.16407512,107760.0,107750.0,18.07859321]
[1748476886258,1.10472151,107760.0,107750.0,18.07859321]
[1748476886467,1.08995061,107760.0,107750.0,18.07859321]
[1748476886672,1.08995061,107760.0,107750.0,18.07459321]
[1748476886673,1.10368077,107760.0,107750.0,18.07459321]
[1748476886880,0.81332077,107760.0,107750.0,18.07759321]
[1748476887083,0.79877992,107760.0,107750.0,18.07759321]
[1748476887345,1.16698177,107760.0,107750.0,18.07759321]
[1748476887550,1.19484177,107760.0,107750.0,18.07059321]
[1748476887758,1.19784177,107760.0,107750.0,18.07059321]
[1748476887959,1.19784177,107760.0,107750.0,18.07459321]
[1748476888166,1.19784177,107760.0,107750.0,18.07059321]
[1748476888381,1.19984177,107760.0,107750.0,18.07059321]
[1748476888795,1.23049769,107760.0,107750.0,18.07059321]
[1748476889006,1.22568948,107760.0,107750.0,18.07059321]
[1748476889419,0.82962863,107760.0,107750.0,18.07059321]
[1748476889630,0.772227,107760.0,107750.0,18.07059321]
[1748476889889,1.154027,107760.0,107750.0,18.07059321]
[1748476890313,0.78676785,107760.0,107750.0,18.06317016]
[1748476890518,1.1981651,107760.0,107750.0,18.06317016]
[1748476890735,1.1981651,107760.0,107750.0,18.05574711]
[1748476891149,1.1981651,107760.0,107750.0,18.04832406]
[1748476891597,1.1981651,107760.0,107750.0,18.04090101]
[1748476891836,1.25725137,107760.0,107750.0,18.00760101]
[1748476892044,1.25725137,107760.0,107750.0,17.87200208]
[1748476892045,6.65725137,107760.0,107750.0,17.87200208]
[1748476892487,6.65725137,107760.0,107750.0,17.86457903]
[1748476892694,6.65725137,107760.0,107750.0,17.83210315]
[1748476892902,6.5951651,107760.0,107750.0,17.8246801]
[1748476893332,6.5991651,107760.0,107750.0,17.81825705]
[1748476893814,6.5971651,107760.0,107750.0,17.81083243]
[1748476894021,6.6001651,107760.0,107750.0,17.81083243]
[1748476894305,6.6001651,107760.0,107750.0,17.80340781]
[1748476894513,6.69121905,107760.0,107750.0,17.79598319]
[1748476895124,6.69121905,107760.0,107750.0,17.78855857]
[1748476895331,6.66535572,107760.0,107750.0,17.78855857]
[1748476895537,6.66535572,107760.0,107750.0,17.78113395]
[1748476895751,6.66163059,107760.0,107750.0,17.78113395]
[1748476895953,6.65062556,107760.0,107750.0,17.77370933]
[1748476896159,6.67848956,107760.0,107750.0,17.77370933]
[1748476896363,6.68949466,107760.0,107750.0,17.76628471]
[1748476896567,6.69821972,107760.0,107750.0,17.76628471]
[1748476896773,6.72402156,107760.0,107750.0,17.75886009]
[1748476896987,6.76390972,107760.0,107750.0,17.66187737]
[1748476897205,6.77080297,107760.0,107750.0,17.58995275]
[1748476897438,6.77080297,107760.0,107750.0,17.56197946]
[1748476897647,6.91001902,107760.0,107750.0,17.55455484]
[1748476897862,6.90312577,107760.0,107750.0,17.55455484]
[1748476898063,6.89939288,107760.0,107750.0,17.54713022]
[1748476898265,6.59931288,107760.0,107750.0,17.54713022]
[1748476898469,6.59931288,107760.0,107750.0,17.5397056]
[1748476898678,6.89931288,107760.0,107750.0,17.5397056]
[1748476898884,6.57842007,107760.0,107750.0,17.53228082]
[1748476899086,1.16123288,107760.0,107750.0,17.53228082]
[1748476899291,0.86123288,107760.0,107750.0,17.53228082]
[1748476899503,1.20123288,107760.0,107750.0,17.53228082]
[1748476899707,0.87681288,107760.0,107750.0,17.53228082]
[1748476899918,0.83581561,107760.0,107750.0,17.53228082]
[1748476900129,1.12861561,107760.0,107750.0,17.53228082]
[1748476901149,1.12857561,107760.0,107750.0,17.53228082]
[1748476901558,0.72935476,107760.0,107750.0,17.53228082]
[1748476901769,0.36149076,107760.0,107750.0,17.53228082]
[1748476901981,0.45341076,107760.0,107750.0,17.56288082]
[1748476902236,0.74633076,107760.0,107750.0,17.59358082]
[1748476902458,0.36149076,107760.0,107750.0,17.59358082]
[1748476902674,0.27043681,107760.0,107750.0,17.59358082]
[1748476902877,0.54355681,107760.0,107750.0,17.59358082]
[1748476903086,0.88351681,107760.0,107750.0,17.59358082]
[1748476903299,0.87651681,107760.0,107750.0,17.59258082]
[1748476903514,0.53651681,107760.0,107750.0,17.59258082]
[1748476903737,0.53951681,107760.0,107750.0,17.59258082]
[1748476903964,0.97057076,107760.0,107750.0,17.59258082]
[1748476904181,0.97057076,107760.0,107750.0,17.53128082]
[1748476905899,1.05951176,107760.0,107750.0,17.50952836]
[1748476906745,1.05952101,107760.0,107750.0,17.50952836]
[1748476907162,1.08738101,107760.0,107750.0,17.50952836]
[1748476908515,1.06324177,107760.0,107750.0,17.50952836]
[1748476908717,1.09110377,107760.0,107750.0,17.50952836]
[1748476908932,1.23904978,107760.0,107750.0,17.50952836]
[1748476909742,1.14799583,107760.0,107750.0,17.50952836]
[1748476910168,6.79799583,107760.0,107750.0,17.50210586]
[1748476910380,6.81326567,107760.0,107750.0,17.50210586]
[1748476910609,6.81326567,107760.0,107750.0,17.49468336]
[1748476911026,6.81326567,107760.0,107750.0,17.48726086]
[1748476911231,6.90431962,107760.0,107750.0,17.48726086]
[1748476911441,6.90431962,107760.0,107750.0,17.47983836]
[1748476911869,6.90431962,107760.0,107750.0,17.4399296]
[1748476911870,6.58431962,107760.0,107750.0,17.4399296]
[1748476912295,6.58431962,107760.0,107750.0,17.43250472]
[1748476912579,6.58431962,107760.0,107750.0,17.3720467]
[1748476912804,6.58431962,107760.0,107750.0,17.36462182]
[1748476913230,6.58431962,107760.0,107750.0,17.35719694]
[1748476913699,6.58431962,107760.0,107750.0,17.34977206]
[1748476914143,6.58931962,107760.0,107750.0,17.34234718]
[1748476914554,6.58931962,107760.0,107750.0,17.3349223]
[1748476914756,6.61893985,107760.0,107750.0,17.3349223]
[1748476914933,6.61593985,107760.0,107750.0,17.32749742]
[1748476915281,6.61893985,107760.0,107750.0,17.32849742]
[1748476915489,6.61893985,107760.0,107750.0,17.32107254]
[1748476915691,6.61393985,107760.0,107750.0,17.32007254]
[1748476915894,6.61393985,107760.0,107750.0,17.31264766]
[1748476916207,6.61893985,107760.0,107750.0,17.30622278]
[1748476916618,6.61893985,107760.0,107750.0,17.2987979]
[1748476916830,6.60893985,107760.0,107750.0,17.2987979]
[1748476916998,6.60593985,107760.0,107750.0,17.2987979]
[1748476917199,6.60993985,107760.0,107750.0,17.29237302]
[1748476917620,6.60993985,107760.0,107750.0,17.28494814]
[1748476917998,6.60993985,107760.0,107750.0,17.24503397]
[1748476918190,6.60993985,107760.0,107750.0,17.16993397]
[1748476918191,7.26275109,107760.0,107750.0,17.16993397]
[1748476918402,7.26759337,107760.0,107750.0,17.16250785]
[1748476918610,7.28609017,107760.0,107750.0,17.16250785]
[1748476918863,7.21355546,107760.0,107750.0,17.12259244]
[1748476919088,7.28106828,107760.0,107750.0,17.12159244]
[1748476919290,7.28106828,107760.0,107750.0,17.11416632]
[1748476919498,7.28906828,107760.0,107750.0,17.08267703]
[1748476919710,7.27057148,107760.0,107750.0,17.07525091]
[1748476919916,7.28906828,107760.0,107750.0,17.07425091]
[1748476920164,7.27307151,107760.0,107750.0,17.0343355]
[1748476920392,7.28007151,107760.0,107750.0,17.0353355]
[1748476920598,7.28007151,107760.0,107750.0,17.02790938]
[1748476920807,7.37774151,107760.0,107750.0,16.99542009]
[1748476921014,7.37774151,107760.0,107750.0,16.98799397]
[1748476921432,7.43332655,107760.0,107750.0,16.94807856]
[1748476921851,7.43332655,107760.0,107750.0,16.94065244]
[1748476922079,7.43332655,107760.0,107750.0,16.90816315]
[1748476922282,7.47478459,107760.0,107750.0,16.90073703]
[1748476922696,7.47478459,107760.0,107750.0,16.89331091]
[1748476922905,7.47478459,107760.0,107750.0,16.86082162]
[1748476923123,7.47478459,107760.0,107750.0,16.8533955]
[1748476923334,7.45628779,107760.0,107750.0,16.8533955]
[1748476923547,7.45628779,107760.0,107750.0,16.81348009]
[1748476923785,7.16320779,107760.0,107750.0,16.81348009]
[1748476923981,7.54936779,107760.0,107750.0,16.80605397]
[1748476924214,7.20790975,107760.0,107750.0,16.77356468]
[1748476924433,7.20786975,107760.0,107750.0,16.76613856]
[1748476924851,6.50786975,107760.0,107750.0,16.72622259]
[1748476925299,6.50786975,107760.0,107750.0,16.71879591]
[1748476925522,6.121779,107760.0,107750.0,16.71879591]
[1748476925731,6.39030507,107760.0,107750.0,16.71136923]
[1748476925937,6.23763507,107760.0,107750.0,16.68961041]
[1748476926142,6.53179507,107760.0,107750.0,16.75501041]
[1748476926350,6.81610507,107760.0,107750.0,16.75501041]
[1748476926551,6.85782283,107760.0,107750.0,16.75501041]
[1748476926750,6.72998507,107760.0,107750.0,16.75501041]
[1748476926959,6.82194507,107760.0,107750.0,16.75501041]
[1748476927173,6.72998507,107760.0,107750.0,16.75501041]
[1748476927385,1.12166279,107760.0,107750.0,16.75501041]
[1748476927595,1.47637744,107760.0,107750.0,16.75501041]
[1748476928055,1.12137744,107760.0,107750.0,16.75301041]
[1748476928261,6.51137744,107760.0,107750.0,16.75301041]
[1748476928475,6.52337744,107760.0,107750.0,16.75501041]
[1748476928685,6.53791829,107760.0,107750.0,16.75501041]
[1748476929538,6.82320364,107760.0,107750.0,16.68961041]
[1748476929754,6.91425759,107760.0,107750.0,16.68961041]
[1748476929962,6.96425759,107760.0,107750.0,16.68961041]
[1748476931499,6.96425759,107760.0,107750.0,16.66163731]
[1748476932162,6.91425759,107760.0,107750.0,16.66163731]
[1748476932383,6.97087349,107760.0,107750.0,16.66163731]
[1748476933758,7.00031262,107760.0,107750.0,16.66163731]
[1748476934194,6.85500193,107760.0,107750.0,16.66163731]
[1748476934408,6.85500193,107760.0,107750.0,16.72273731]
[1748476934409,7.17073954,107760.0,107750.0,16.72273731]
[1748476934829,7.19517867,107760.0,107750.0,16.72273731]
[1748476935293,5.85319782,107760.0,107750.0,16.72273731]
[1748476935514,0.52526279,107760.0,107750.0,16.72273731]
[1748476935735,1.17456364,107760.0,107750.0,16.72273731]
[1748476936369,1.16856364,107760.0,107750.0,16.72173731]
[1748476936810,0.83156364,107760.0,107750.0,16.72273731]
[1748476937025,1.17156364,107760.0,107750.0,16.72273731]
[1748476937243,1.16556364,107760.0,107750.0,16.72173731]
[1748476937457,1.16556364,107760.0,107750.0,16.72273731]
[1748476937665,1.16856364,107760.0,107750.0,16.72273731]
[1748476938186,1.12652079,107760.0,107750.0,16.72273731]
[1748476938434,1.14151986,107760.0,107750.0,16.72273731]
[1748476939090,1.23257381,107760.0,107750.0,16.72273731]
[1748476939523,1.23235559,107760.0,107750.0,16.72273731]
[1748476939744,1.24120747,107760.0,107750.0,16.72273731]
[1748476939970,6.34689747,107760.0,107750.0,16.62822828]
[1748476940219,6.46797597,107760.0,107750.0,16.62822828]
[1748476940724,6.45912409,107760.0,107750.0,16.62822828]
[1748476941199,6.41748472,107760.0,107750.0,16.62822828]
[1748476941429,6.45911558,107760.0,107750.0,16.62822828]
[1748476943497,6.36806163,107760.0,107750.0,16.65922828]
[1748476944001,6.36806163,107760.0,107750.0,16.69192828]
[1748476944202,6.36706163,107760.0,107750.0,16.69192828]
[1748476944638,6.32543077,107760.0,107750.0,16.69192828]
[1748476945006,6.36708839,107760.0,107750.0,16.69192828]
[1748476945214,6.36708765,107760.0,107750.0,16.69192828]
[1748476945422,6.45827889,107760.0,107750.0,16.69192828]
[1748476945800,6.16291889,107760.0,107750.0,16.69192828]
[1748476946028,6.29828847,107760.0,107750.0,16.67017222]
[1748476946229,6.0302076,107760.0,107750.0,16.67017222]
[1748476946401,6.24255847,107760.0,107750.0,16.64220043]
[1748476947421,6.24255847,107760.0,107750.0,16.61120043]
[1748476947620,6.33361242,107760.0,107750.0,16.61120043]
[1748476947825,6.33361242,107760.0,107750.0,16.64250043]
[1748476948025,6.24255847,107760.0,107750.0,16.64250043]
[1748476948448,6.27042247,107760.0,107750.0,16.64250043]
[1748476948706,6.27042247,107760.0,107750.0,16.61120043]
[1748476948707,6.57042247,107760.0,107750.0,16.61120043]
[1748476948846,6.5998616,107760.0,107750.0,16.57850043]
[1748476949069,6.61428452,107760.0,107750.0,16.57850043]
[1748476949675,6.68541137,107760.0,107750.0,16.57850043]
[1748476950123,6.72786055,107760.0,107750.0,16.57850043]
[1748476950361,6.6839985,107760.0,107750.0,16.57850043]
[1748476950620,5.87151019,107760.0,107750.0,16.64110043]
[1748476950997,0.86280162,107760.0,107750.0,16.64110043]
[1748476951224,0.76528162,107760.0,107750.0,16.64110043]
[1748476951455,0.83984752,107760.0,107750.0,16.64110043]
[1748476951675,0.81198352,107760.0,107750.0,16.64110043]
[1748476952123,1.15198352,107760.0,107750.0,16.64110043]
[1748476952345,1.15182352,107760.0,107750.0,16.64110043]
[1748476952818,1.15198352,107760.0,107750.0,16.64110043]
[1748476953031,0.84970352,107760.0,107750.0,16.64110043]
[1748476953254,1.15190352,107760.0,107750.0,16.64110043]
[1748476953470,1.15194456,107760.0,107750.0,16.64110043]
[1748476953900,1.16080683,107760.0,107750.0,16.64110043]
[1748476954345,0.85860683,107760.0,107750.0,16.64110043]
[1748476954595,0.70401397,107760.0,107750.0,16.64110043]
[1748476954837,0.75988685,107760.0,107750.0,16.64110043]
[1748476955334,0.58674807,107760.0,107750.0,16.64110043]
[1748476955555,0.2758858,107760.0,107750.0,16.64110043]
[1748476955795,0.45563185,107760.0,107750.0,16.64110043]
[1748476956268,0.79263185,107760.0,107750.0,16.64010043]
[1748476956487,0.79151185,107760.0,107750.0,16.64010043]
[1748476956718,0.79347185,107760.0,107750.0,16.64010043]
[1748476956968,0.79339185,107760.0,107750.0,16.64010043]
[1748476957729,0.49163185,107760.0,107750.0,16.64010043]
[1748476957948,0.27272947,107760.0,107750.0,16.64110043]
[1748476958173,0.57452947,107760.0,107750.0,16.64110043]
[1748476958715,0.91252947,107760.0,107750.0,16.64010043]
[1748476959178,0.91152947,107760.0,107750.0,16.64010043]
[1748476959419,0.91252947,107760.0,107750.0,16.64010043]
[1748476960073,0.89252947,107760.0,107750.0,16.64010043]
[1748476960502,0.59072947,107760.0,107750.0,16.64010043]
[1748476960736,0.84815711,107760.0,107750.0,16.64010043]
[1748476962280,0.54615711,107760.0,107750.0,16.64010043]
[1748476962499,0.84835711,107760.0,107750.0,16.64010043]
[1748476962942,1.03689106,107760.0,107750.0,16.64010043]
[1748476963187,1.03689106,107760.0,107750.0,16.60960043]
[1748476963405,1.04794852,107760.0,107750.0,16.60960043]
[1748476963656,1.04794852,107760.0,107750.0,16.64180043]
[1748476964286,1.04794852,107760.0,107750.0,16.60960043]
[1748476964948,1.13268687,107760.0,107750.0,16.57750043]
[1748476965180,1.17805277,107760.0,107750.0,16.57750043]
[1748476965395,6.25934996,107760.0,107750.0,16.57750043]
[1748476965624,6.29064996,107760.0,107750.0,16.57750043]
[1748476965858,6.19799842,107760.0,107750.0,16.57750043]
[1748476966122,6.19799842,107760.0,107750.0,16.555745]
[1748476966347,6.49699842,107760.0,107750.0,16.555745]
[1748476966571,6.49799842,107760.0,107750.0,16.555745]
[1748476966794,6.51573695,107760.0,107750.0,16.556745]
[1748476967008,6.50099842,107760.0,107750.0,16.556745]
[1748476967655,6.5179399,107760.0,107750.0,16.556745]
[1748476967871,6.5179399,107760.0,107750.0,16.5287734]
[1748476967872,6.5512399,107760.0,107750.0,16.5287734]
[1748476968503,6.53429842,107760.0,107750.0,16.5287734]
[1748476969179,6.52545447,107760.0,107750.0,16.5287734]
[1748476969402,6.50101212,107760.0,107750.0,16.5287734]
[1748476970101,6.50321212,107760.0,107750.0,16.5287734]
[1748476970944,6.07073212,107760.0,107750.0,16.5287734]
[1748476971160,6.47245212,107760.0,107750.0,16.5287734]
[1748476971801,6.54245212,107760.0,107750.0,16.5287734]
[1748476972676,6.84245212,107760.0,107750.0,16.5287734]
[1748476973107,6.53825212,107760.0,107750.0,16.5287734]
[1748476973319,1.18353911,107760.0,107750.0,16.5287734]
[1748476973570,1.20711319,107760.0,107750.0,16.5287734]
[1748476975351,1.23497419,107760.0,107750.0,16.5287734]
[1748476977498,1.22024804,107760.0,107750.0,16.5287734]
[1748476978775,1.22024992,107760.0,107750.0,16.5287734]
[1748476980440,1.21916992,107760.0,107750.0,16.5287734]
[1748476980658,0.93087769,107760.0,107750.0,16.5944734]
[1748476980872,1.19390871,107760.0,107750.0,16.5944734]
[1748476981080,1.23401448,107760.0,107750.0,16.5944734]
[1748476981726,0.93089448,107760.0,107750.0,16.5944734]
[1748476981944,1.23389448,107760.0,107750.0,16.5944734]
[1748476982386,1.32490843,107760.0,107750.0,16.5618734]
[1748476982625,1.23385448,107760.0,107750.0,16.5618734]
[1748476983483,1.26415448,107760.0,107750.0,16.5287734]
[1748476983694,1.24940671,107760.0,107750.0,16.5287734]
[1748476984134,1.24940633,107760.0,107750.0,16.5287734]
[1748476984348,0.94644633,107760.0,107750.0,16.5287734]
[1748476984571,1.21986633,107760.0,107750.0,16.5287734]
[1748476985520,1.25253693,107760.0,107750.0,16.5287734]
[1748476985957,1.25253693,107760.0,107750.0,16.50701944]
[1748476987283,0.94881693,107760.0,107750.0,16.50701944]
[1748476987496,0.94881693,107760.0,107750.0,16.56981944]
[1748476987497,1.66789268,107760.0,107750.0,16.56981944]
[1748476987726,1.66789436,107760.0,107750.0,16.56981944]
[1748476988363,1.66851698,107760.0,107750.0,16.56981944]
[1748476990787,1.64065598,107760.0,107750.0,16.56981944]
[1748476991207,1.57065598,107760.0,107750.0,16.56981944]
[1748476991419,1.4977977,107760.0,107750.0,16.56981944]
[1748476991649,1.75159473,107760.0,107750.0,16.56981944]
[1748476991865,1.7256467,107760.0,107750.0,16.56981944]
[1748476992081,1.75159437,107760.0,107750.0,16.56981944]
[1748476992293,1.7256467,107760.0,107750.0,16.56981944]
[1748476992508,1.42274144,107760.0,107750.0,16.56981944]
[1748476992736,1.72574144,107760.0,107750.0,16.56981944]
[1748476992949,1.72562144,107760.0,107750.0,16.56981944]
[1748476993398,1.72566144,107760.0,107750.0,16.56981944]
[1748476993604,1.72562144,107760.0,107750.0,16.56981944]
[1748476993810,1.07899676,107760.0,107750.0,16.56981944]
[1748476994060,1.72191676,107760.0,107750.0,16.56981944]
[1748476994270,0.58015676,107760.0,107750.0,16.56981944]
[1748476994478,0.86305106,107760.0,107750.0,16.56981944]
[1748476994695,1.20305106,107760.0,107750.0,16.56981944]
[1748476994915,0.87189949,107760.0,107750.0,16.56981944]
[1748476995135,1.20305106,107760.0,107750.0,16.56981944]
[1748476995380,1.21189949,107760.0,107750.0,16.56981944]
[1748476996062,0.95189949,107760.0,107750.0,16.56981944]
[1748476996294,0.85191711,107760.0,107750.0,16.56981944]
[1748476997218,0.8504766,107760.0,107750.0,16.56981944]
[1748476999221,0.5477166,107760.0,107750.0,16.56981944]
[1748476999689,0.8507166,107760.0,107750.0,16.56981944]
[1748477001407,0.94177055,107760.0,107750.0,16.53771944]
[1748477001618,0.95284892,107760.0,107750.0,16.50701944]
[1748477001863,0.96171161,107760.0,107750.0,16.50701944]
[1748477002082,0.97651356,107760.0,107750.0,16.50701944]
[1748477002707,0.97651356,107760.0,107750.0,16.50014844]
[1748477003164,1.02275441,107760.0,107750.0,16.50014844]
[1748477003371,1.13278189,107760.0,107750.0,16.50014844]
[1748477004239,1.1179837,107760.0,107750.0,16.49914844]
[1748477004472,1.13275246,107760.0,107750.0,16.49914844]
[1748477004693,1.1179837,107760.0,107750.0,16.49914844]
[1748477005113,1.1327529,107760.0,107750.0,16.49914844]
[1748477005526,1.1179837,107760.0,107750.0,16.49914844]
[1748477005751,1.5188237,107760.0,107750.0,16.49914844]
[1748477005973,1.57235505,107760.0,107750.0,16.47739519]
[1748477006181,1.5335931,107760.0,107750.0,16.47739519]
[1748477007034,1.5188237,107760.0,107750.0,16.47739519]
[1748477009971,6.53613581,107760.0,107750.0,16.47739519]
[1748477010185,6.62718976,107760.0,107750.0,16.47739519]
[1748477010396,6.65505276,107760.0,107750.0,16.47739519]
[1748477011913,7.00505276,107760.0,107750.0,16.47739519]
[1748477012129,7.00505276,107760.0,107750.0,16.46997179]